fUST/lending_fUST_20241225
["ID","MTS","AMOUNT","RATE_DAILY","PERIOD"]
[346597812,1735123074267,-500.0,0.00010894,2]
[346597813,1735123074296,-500.0,0.00010894,2]
[346597814,1735123074323,-500.0,0.00010894,2]
[346597815,1735123074347,-500.0,0.00010894,2]
[346597816,1735123074371,-500.0,0.00010894,2]
[346597817,1735123074395,-500.0,0.00010894,2]
[346597818,1735123074419,-500.0,0.00010894,2]
[346597819,1735123074444,-500.0,0.00010895,2]
[346597820,1735123074467,-500.0,0.00010895,2]
[346597821,1735123074492,-500.0,0.00010895,2]
[346597822,1735123074515,-500.0,0.00010895,2]
[346597823,1735123074539,-500.0,0.00010895,2]
[346597824,1735123074565,-5226.13,0.00010895,2]
[346597825,1735123074591,-500.0,0.00010895,2]
[346597826,1735123074616,-500.0,0.00010895,2]
[346597827,1735123074639,-500.0,0.00010895,2]
[346597828,1735123074661,-500.0,0.00010895,2]
[346597829,1735123074684,-561.21,0.00010895,2]
[346597830,1735123074708,-761.42,0.00010895,2]
[346597831,1735123074731,-500.0,0.00010895,2]
[346597832,1735123074753,-500.0,0.00010896,2]
[346597833,1735123074775,-500.0,0.00010896,2]
[346597834,1735123074797,-500.0,0.00010896,2]
[346597835,1735123074820,-878.03,0.00010896,2]
[346597836,1735123074843,-500.0,0.00010897,2]
[346597837,1735123074866,-500.0,0.00010897,2]
[346597838,1735123074889,-500.0,0.00010897,2]
[346597839,1735123074914,-500.0,0.00010898,2]
[346597840,1735123074937,-410.46974099,0.00010898,2]
[346597841,1735123074961,-500.0,0.00010898,2]
[346597842,1735123074985,-500.0,0.00010898,2]
[346597843,1735123075009,-500.0,0.00010898,2]
[346597844,1735123075035,-500.0,0.00010898,2]
[346597845,1735123075059,-268.84546863,0.00010898,2]
[346597846,1735123075085,-500.0,0.00010898,2]
[346597847,1735123075111,-499.99999999,0.00010898,2]
[346597848,1735123075134,-500.0,0.00010899,2]
[346597849,1735123075157,-500.0,0.00010899,2]
[346597850,1735123075182,-500.0,0.00010899,2]
[346597851,1735123075205,-628.14,0.00010899,2]
[346597852,1735123075228,-5571.8,0.00010899,2]
[346597853,1735123075251,-500.0,0.00010899,2]
[346597854,1735123075274,-500.0,0.00010899,2]
[346597855,1735123075297,-2098.97,0.00010899,2]
[346597856,1735123075321,-568.14,0.00010899,2]
[346597857,1735123075343,-500.0,0.00010899,2]
[346597858,1735123075366,-1902.88,0.00010899,2]
[346597859,1735123075388,-1099.84,0.00010899,2]
[346597860,1735123075411,-151.0,0.00010959,2]
[346597861,1735123075434,-979.73303475,0.00011069,2]
[346597862,1735123075456,-979.73303473,0.00011095,2]
[346597863,1735123075479,-154.6367149,0.00011105,2]
[346597864,1735123075502,-979.73303473,0.00011121,2]
[346597865,1735123075524,-979.73303473,0.00011147,2]
[346597866,1735123075546,-500.0,0.00011167,2]
[346597867,1735123075574,-500.0,0.00011168,2]
[346597868,1735123075596,-500.0,0.00011168,2]
[346597869,1735123075619,-763.7,0.00011168,2]
[346597870,1735123075642,-178.8500237,0.00011168,2]
[346597871,1735123075666,-500.0,0.00011168,2]
[346597872,1735123075689,-509.35,0.00011168,2]
[346597873,1735123075711,-521.41,0.00011168,2]
[346597874,1735123075734,-533.36153975,0.00011168,2]
[346597880,1735123273166,257.345,9.932e-05,2]
[346597882,1735123531615,24900.0,9.896e-05,2]
[346597883,1735123628109,-2471.63188169,0.00010032,2]
[346597885,1735123756379,-69.37099121,0.00010032,2]
[346597886,1735123756403,-120.62450763,0.00010795,2]
[346597925,1735123832444,-91.49266062,0.00010795,2]
[346597927,1735123832454,-212.11716825,0.00010876,2]
[346597929,1735123832463,-300.0,0.00010891,2]
[346597931,1735123832473,-300.0,0.00010891,2]
[346597932,1735123832482,-500.0,0.00010892,2]
[346597933,1735123832492,-504.23693916,0.00010892,2]
[346597935,1735123832502,-500.0,0.00010892,2]
[346597936,1735123832511,-500.0,0.00010892,2]
[346597939,1735123832521,-509.79024182,0.00010892,2]
[346597940,1735123832530,-500.0,0.00010892,2]
[346597942,1735123832539,-511.63904826,0.00010892,2]
[346597944,1735123832549,-500.0,0.00010892,2]
[346597946,1735123832558,-500.0,0.00010892,2]
[346597948,1735123832567,-500.0,0.00010892,2]
[346597950,1735123832576,-502.06915255,0.00010892,2]
[346597952,1735123832586,-500.0,0.00010892,2]
[346597954,1735123832596,-500.0,0.00010892,2]
[346597956,1735123832605,-500.0,0.00010892,2]
[346597958,1735123832615,-500.0,0.00010892,2]
[346597960,1735123832624,-500.0,0.00010892,2]
[346597962,1735123832634,-648.25768715,0.00010892,2]
[346597964,1735123832643,-500.0,0.00010892,2]
[346597966,1735123832652,-500.0,0.00010892,2]
[346597968,1735123832661,-500.0,0.00010892,2]
[346597970,1735123832671,-500.0,0.00010892,2]
[346597972,1735123832681,-307.86433896,0.00010892,2]
[346597974,1735123832690,-500.0,0.00010892,2]
[346597976,1735123832700,-262.38,0.00010892,2]
[346597978,1735123832709,-420.04,0.00010892,2]
[346597980,1735123832718,-4629.84669972,0.00010892,2]
[346597982,1735123832730,-709.79330028,0.00010892,2]
[346597984,1735123832741,-500.0,0.00010892,2]
[346597986,1735123832750,-2011.51,0.00010892,2]
[346597988,1735123832759,-394.62185765,0.00010892,2]
[346597990,1735123832769,-1823.59,0.00010892,2]
[346597992,1735123832778,-161.88,0.00010892,2]
[346597994,1735123832787,-1054.01,0.00010892,2]
[346597996,1735123832797,-934.67,0.00010892,2]
[346597998,1735123832806,-1284.35,0.00010892,2]
[346598000,1735123832815,-588.91,0.00010892,2]
[346598002,1735123832824,-500.0,0.00010892,2]
[346598004,1735123832834,-500.0,0.00010892,2]
[346598006,1735123832844,-521.29,0.00010892,2]
[346598008,1735123832853,-500.0,0.00010892,2]
[346598010,1735123832862,-620.95,0.00010892,2]
[346598012,1735123832871,-500.0,0.00010892,2]
[346598014,1735123832880,-500.0,0.00010892,2]
[346598016,1735123832890,-500.0,0.00010892,2]
[346598018,1735123832899,-500.0,0.00010892,2]
[346598020,1735123832909,-500.0,0.00010892,2]
[346598022,1735123832918,-418.76060763,0.00010892,2]
[346598024,1735123832930,-500.0,0.00010892,2]
[346598026,1735123832940,-500.0,0.00010892,2]
[346598027,1735123832950,-500.0,0.00010892,2]
[346598029,1735123832959,-534.52321372,0.00010892,2]
[346598031,1735123832969,-500.0,0.00010893,2]
[346598033,1735123832979,-500.0,0.00010893,2]
[346598035,1735123832988,-500.0,0.00010893,2]
[346598037,1735123832998,-500.0,0.00010893,2]
[346598040,1735123833007,-500.0,0.00010893,2]
[346598042,1735123833017,-458.88960072,0.00010893,2]
[346598508,1735123838338,-500.0,0.00010891,2]
[346598509,1735123838348,-500.0,0.00010891,2]
[346598510,1735123838358,-500.0,0.00010892,2]
[346598511,1735123838369,-678.47,0.00010892,2]
[346598512,1735123838378,-292.72039928,0.00010893,2]
[346598513,1735123838388,-500.0,0.00010893,2]
[346598514,1735123838397,-519.45,0.00010893,2]
[346598515,1735123838406,-500.0,0.00010893,2]
[346598516,1735123838417,-500.0,0.00010893,2]
[346598517,1735123838427,-500.0,0.00010893,2]
[346598518,1735123838437,-545.02,0.00010893,2]
[346598519,1735123838447,-19724.53,0.00010893,2]
[346598520,1735123838457,-1341.35,0.00010893,2]
[346598521,1735123838466,-500.0,0.00010893,2]
[346598522,1735123838475,-687.54,0.00010893,2]
[346598523,1735123838484,-500.0,0.00010893,2]
[346598524,1735123838493,-700.06,0.00010893,2]
[346598525,1735123838502,-500.0,0.00010893,2]
[346598526,1735123838512,-963.56,0.00010893,2]
[346598527,1735123838521,-887.9,0.00010893,2]
[346598528,1735123838529,-724.69,0.00010893,2]
[346598529,1735123838539,-5074.34,0.00010893,2]
[346598531,1735123838548,-764.42,0.00010893,2]
[346598532,1735123838557,-500.0,0.00010893,2]
[346598533,1735123838566,-500.0,0.00010893,2]
[346598535,1735123838575,-500.0,0.00010893,2]
[346598536,1735123838584,-500.0,0.00010893,2]
[346598538,1735123838593,-590.44,0.00010893,2]
[346598539,1735123838602,-500.0,0.00010893,2]
[346598541,1735123838611,-598.15,0.00010893,2]
[346598542,1735123838621,-500.0,0.00010893,2]
[346598543,1735123838630,-500.0,0.00010893,2]
[346598545,1735123838639,-500.0,0.00010893,2]
[346598546,1735123838649,-500.0,0.00010893,2]
[346598548,1735123838658,-500.0,0.00010894,2]
[346598549,1735123838668,-500.0,0.00010894,2]
[346598551,1735123838677,-500.0,0.00010894,2]
[346598552,1735123838687,-500.0,0.00010894,2]
[346598554,1735123838696,-500.0,0.00010894,2]
[346598555,1735123838705,-500.0,0.00010894,2]
[346598556,1735123838714,-500.0,0.00010894,2]
[346598558,1735123838724,-500.0,0.00010894,2]
[346598559,1735123838733,-500.0,0.00010894,2]
[346598561,1735123838742,-500.0,0.00010894,2]
[346598562,1735123838751,-500.0,0.00010894,2]
[346598564,1735123838760,-500.0,0.00010894,2]
[346598565,1735123838770,-500.0,0.00010894,2]
[346598567,1735123838780,-500.0,0.00010894,2]
[346598568,1735123838789,-500.0,0.00010894,2]
[346598570,1735123838799,-500.0,0.00010894,2]
[346598571,1735123838808,-500.0,0.00010894,2]
[346598573,1735123838817,-500.0,0.00010894,2]
[346598574,1735123838826,-500.0,0.00010894,2]
[346598575,1735123838836,-500.0,0.00010894,2]
[346598577,1735123838845,-500.0,0.00010894,2]
[346598578,1735123838855,-500.0,0.00010894,2]
[346598580,1735123838864,-500.0,0.00010894,2]
[346598581,1735123838873,-500.0,0.00010894,2]
[346598583,1735123838883,-502.74753593,0.00010894,2]
[346598584,1735123838892,-500.0,0.00010894,2]
[346598586,1735123838901,-500.0,0.00010894,2]
[346598587,1735123838911,-500.0,0.00010894,2]
[346598589,1735123838921,-500.0,0.00010894,2]
[346598590,1735123838930,-500.91043585,0.00010894,2]
[346598591,1735123838940,-500.0,0.00010894,2]
[346598593,1735123838949,-504.00923443,0.00010894,2]
[346598594,1735123838959,-501.94438172,0.00010894,2]
[346598596,1735123838968,-500.0,0.00010894,2]
[346598597,1735123838979,-379.23030311,0.00010894,2]
[346598599,1735123838988,-500.0,0.00010894,2]
[346598600,1735123838998,-636.09,0.00010894,2]
[346598602,1735123839008,-500.0,0.00010894,2]
[346598603,1735123839018,-500.0,0.00010894,2]
[346598605,1735123839028,-500.0,0.00010894,2]
[346598606,1735123839038,-500.0,0.00010894,2]
[346598607,1735123839047,-500.0,0.00010894,2]
[346598609,1735123839057,-500.0,0.00010894,2]
[346598610,1735123839067,-500.0,0.00010894,2]
[346598612,1735123839076,-500.0,0.00010894,2]
[346598613,1735123839086,-500.0,0.00010894,2]
[346598615,1735123839096,-500.0,0.00010894,2]
[346598616,1735123839106,-500.0,0.00010894,2]
[346598618,1735123839116,-632.34,0.00010894,2]
[346598619,1735123839125,-500.0,0.00010894,2]
[346598621,1735123839134,-500.0,0.00010894,2]
[346598622,1735123839143,-500.0,0.00010894,2]
[346598624,1735123839153,-500.0,0.00010894,2]
[346598625,1735123839162,-500.0,0.00010894,2]
[346598626,1735123839173,-500.0,0.00010894,2]
[346598628,1735123839182,-500.0,0.00010894,2]
[346598629,1735123839191,-500.0,0.00010894,2]
[346598631,1735123839200,-500.0,0.00010894,2]
[346598632,1735123839210,-500.0,0.00010894,2]
[346598634,1735123839219,-500.0,0.00010894,2]
[346598635,1735123839228,-500.0,0.00010894,2]
[346598637,1735123839239,-500.0,0.00010894,2]
[346598638,1735123839248,-500.0,0.00010894,2]
[346598640,1735123839258,-500.0,0.00010894,2]
[346598641,1735123839267,-500.0,0.00010894,2]
[346598642,1735123839276,-500.0,0.00010894,2]
[346598644,1735123839286,-500.0,0.00010894,2]
[346598645,1735123839297,-500.0,0.00010894,2]
[346598647,1735123839306,-500.0,0.00010894,2]
[346598648,1735123839316,-500.0,0.00010894,2]
[346598650,1735123839325,-500.0,0.00010894,2]
[346598651,1735123839334,-500.0,0.00010894,2]
[346598653,1735123839345,-534.43,0.00010894,2]
[346598654,1735123839355,-263.71170207,0.00010894,2]
[346598656,1735123839365,-500.0,0.00010894,2]
[346598657,1735123839375,-500.0,0.00010894,2]
[346598659,1735123839385,-500.0,0.00010894,2]
[346598660,1735123839394,-500.0,0.00010894,2]
[346598662,1735123839403,-500.0,0.00010894,2]
[346598663,1735123839412,-500.0,0.00010894,2]
[346598664,1735123839421,-729.7,0.00010894,2]
[346598666,1735123839431,-500.0,0.00010894,2]
[346598667,1735123839440,-500.0,0.00010894,2]
[346598669,1735123839450,-500.0,0.00010894,2]
[346598670,1735123839460,-500.0,0.00010894,2]
[346598672,1735123839470,-500.0,0.00010894,2]
[346598673,1735123839479,-779.53,0.00010894,2]
[346598675,1735123839488,-500.0,0.00010895,2]
[346598676,1735123839497,-500.0,0.00010895,2]
[346598677,1735123839507,-500.0,0.00010895,2]
[346598679,1735123839516,-500.0,0.00010895,2]
[346598680,1735123839525,-500.0,0.00010895,2]
[346598682,1735123839535,-500.0,0.00010895,2]
[346598683,1735123839544,-500.0,0.00010895,2]
[346598685,1735123839553,-5008.38,0.00010899,2]
[346598686,1735123839563,-54.33600761,0.00010944,2]
[346598697,1735123839765,-95.22908568,0.00010944,2]
[346598699,1735123839781,-291.55990671,0.00010944,2]
[346598700,1735123839791,-212.11716825,0.00010957,2]
[346598702,1735123839800,-212.11716825,0.00011037,2]
[346598703,1735123839810,-212.11716825,0.00011118,2]
[346598705,1735123839819,-341.6,0.00011165,2]
[346598706,1735123839829,-530.19299482,0.00011166,2]
[346598707,1735123839838,-500.0,0.00011166,2]
[346598709,1735123839847,-500.0,0.00011166,2]
[346598710,1735123839857,-500.0,0.00011166,2]
[346598712,1735123839866,-500.0,0.00011166,2]
[346598713,1735123839876,-586.62904564,0.00011166,2]
[346598715,1735123839886,-5339.64,0.00011166,2]
[346598716,1735123839895,-500.0,0.00011166,2]
[346598718,1735123839905,-2011.51,0.00011166,2]
[346598719,1735123839914,-957.85188922,0.00011166,2]
[346598721,1735123839927,-865.73811078,0.00011166,2]
[346598722,1735123839936,-1054.01,0.00011166,2]
[346598723,1735123839946,-253.68438805,0.00011166,2]
[346598725,1735123839957,-680.98561195,0.00011166,2]
[346598727,1735123839967,-1284.35,0.00011166,2]
[346598728,1735123839977,-588.91,0.00011166,2]
[346598729,1735123839987,-500.0,0.00011166,2]
[346598731,1735123839997,-500.0,0.00011166,2]
[346598732,1735123840006,-521.29,0.00011166,2]
[346598734,1735123840016,-500.0,0.00011166,2]
[346598735,1735123840025,-620.95,0.00011166,2]
[346598737,1735123840035,-500.0,0.00011166,2]
[346598738,1735123840046,-678.47,0.00011166,2]
[346598740,1735123840056,-427.0006709,0.00011166,2]
[346598741,1735123840067,-180.36190065,0.00011166,2]
[346598743,1735123840077,-500.0,0.00011167,2]
[346598744,1735123840087,-500.0,0.00011167,2]
[346598746,1735123840098,-500.0,0.00011167,2]
[346598747,1735123840108,-751.61,0.00011167,2]
[346598748,1735123840117,-500.0,0.00011167,2]
[346598750,1735123840127,-146.7718165,0.00011167,2]
[346598769,1735123840526,-500.0,0.00011166,2]
[346598771,1735123840538,-372.6781835,0.00011167,2]
[346598772,1735123840548,-500.0,0.00011167,2]
[346598773,1735123840557,-500.0,0.00011167,2]
[346598775,1735123840566,-500.0,0.00011167,2]
[346598776,1735123840575,-500.0,0.00011167,2]
[346598778,1735123840585,-500.0,0.00011167,2]
[346598779,1735123840594,-500.0,0.00011167,2]
[346598781,1735123840603,-19724.53,0.00011167,2]
[346598782,1735123840613,-1341.35,0.00011167,2]
[346598784,1735123840622,-564.21,0.00011167,2]
[346598785,1735123840631,-500.0,0.00011167,2]
[346598786,1735123840640,-687.54,0.00011167,2]
[346598788,1735123840650,-500.0,0.00011167,2]
[346598789,1735123840659,-157.26,0.00011167,2]
[346598791,1735123840669,-500.0,0.00011167,2]
[346598792,1735123840679,-700.06,0.00011167,2]
[346598794,1735123840688,-314.10836071,0.00011167,2]
[346598795,1735123840697,-963.56,0.00011167,2]
[346598797,1735123840706,-887.9,0.00011167,2]
[346598798,1735123840716,-724.69,0.00011167,2]
[346598799,1735123840725,-5074.34,0.00011167,2]
[346598801,1735123840735,-764.42,0.00011167,2]
[346598802,1735123840744,-643.29630942,0.00011167,2]
[346598804,1735123840753,-409.678414,0.00011167,2]
[346598805,1735123840763,-500.0,0.00011167,2]
[346598807,1735123840773,-500.0,0.00011167,2]
[346598808,1735123840782,-184.56653237,0.00011167,2]
[346599079,1735123846418,-315.43346763,0.00011167,2]
[346599080,1735123846428,-590.44,0.00011167,2]
[346599081,1735123846437,-500.0,0.00011167,2]
[346599082,1735123846447,-625.78,0.00011167,2]
[346599083,1735123846456,-500.0,0.00011167,2]
[346599084,1735123846465,-500.0,0.00011167,2]
[346599085,1735123846474,-500.0,0.00011167,2]
[346599086,1735123846484,-500.0,0.00011167,2]
[346599087,1735123846493,-500.0,0.00011167,2]
[346599088,1735123846502,-500.0,0.00011167,2]
[346599089,1735123846512,-500.0,0.00011168,2]
[346599091,1735123846521,-500.0,0.00011168,4]
[346599092,1735123846530,-500.0,0.00011168,2]
[346599094,1735123846539,-576.25,0.00011168,2]
[346599095,1735123846548,-500.0,0.00011168,2]
[346599097,1735123846557,-500.0,0.00011168,2]
[346599098,1735123846566,-500.0,0.00011168,2]
[346599099,1735123846575,-500.0,0.00011168,2]
[346599101,1735123846584,-559.34,0.00011168,2]
[346599102,1735123846593,-385.49220974,0.00011168,2]
[346599104,1735123846602,-500.0,0.00011168,2]
[346599105,1735123846612,-500.0,0.00011168,2]
[346599107,1735123846621,-500.0,0.00011168,2]
[346599108,1735123846630,-500.0,0.00011168,2]
[346599110,1735123846639,-636.09,0.00011168,2]
[346599111,1735123846648,-500.0,0.00011168,2]
[346599112,1735123846657,-500.0,0.00011168,2]
[346599114,1735123846667,-632.34,0.00011168,2]
[346599115,1735123846676,-500.0,0.00011168,2]
[346599117,1735123846686,-500.0,0.00011168,2]
[346599118,1735123846695,-544.94682326,0.00011168,2]
[346599120,1735123846704,-466.7267193,0.00011168,2]
[346599121,1735123846713,-500.0,0.00011168,2]
[346599123,1735123846723,-500.0,0.00011168,2]
[346599124,1735123846732,-500.0,0.00011168,2]
[346599126,1735123846741,-283.22455287,0.00011168,2]
[346599127,1735123846750,-500.0,0.00011168,2]
[346599128,1735123846759,-500.0,0.00011168,2]
[346599130,1735123846768,-500.0,0.00011168,2]
[346599131,1735123846777,-729.7,0.00011168,2]
[346599133,1735123846787,-500.0,0.00011168,2]
[346599134,1735123846796,-500.0,0.00011168,2]
[346599136,1735123846805,-361.78813914,0.00011168,2]
[346599137,1735123846814,-500.0,0.00011168,2]
[346599139,1735123846824,-500.0,0.00011168,2]
[346599140,1735123846833,-779.53,0.00011168,2]
[346599141,1735123846842,-500.0,0.00011169,2]
[346599143,1735123846851,-500.0,0.00011169,2]
[346599144,1735123846861,-500.0,0.00011169,2]
[346599146,1735123846871,-228.38,0.00011169,2]
[346599147,1735123846880,-500.0,0.00011169,2]
[346599149,1735123846889,-500.0,0.00011169,2]
[346599150,1735123846899,-500.0,0.0001117,2]
[346599152,1735123846908,-553.35,0.0001117,2]
[346599153,1735123846917,-878.03,0.0001117,2]
[346599155,1735123846927,-5008.38,0.00011173,2]
[346599156,1735123846937,-153.0,0.000112,2]
[346599157,1735123846946,-153.3554759,0.000112,2]
[346599159,1735123846955,-352.0971134,0.000112,2]
[346599160,1735123846964,-214.1010006,0.000112,2]
[346599162,1735123846973,-281.3521719,0.000112,2]
[346599163,1735123846982,-151.0,0.00011217,2]
[346599165,1735123846991,-2198.34188335,0.00011218,2]
[346599169,1735123847056,-59.6342002,0.00011218,2]
[346599170,1735123847067,-252.87346695,0.00011218,2]
[346599172,1735123847078,-2780.14949023,0.00011218,2]
[346602303,1735123974654,1334.1376271,0.0001002,2]
[346609329,1735124467032,24900.0,9.893e-05,2]
[346609375,1735124703159,249999.999998,0.00018259,60]
[346609377,1735124741523,173.49103099,0.00018259,30]
[346609379,1735124848341,-500.0,0.00010381,2]
[346609380,1735124848370,-300.0,0.00010889,2]
[346609381,1735124848400,-300.0,0.00010889,2]
[346609382,1735124848428,-4495.45363822,0.0001089,2]
[346609384,1735124968125,-155.0,0.00010319,2]
[346609385,1735124968148,-182.97549884,0.0001078,2]
[346609441,1735125032807,-7.02,0.0001078,2]
[346609443,1735125032817,-300.0,0.00010889,2]
[346609445,1735125032827,-300.0,0.00010889,2]
[346609448,1735125032837,-500.0,0.00010889,2]
[346609453,1735125032846,-500.0,0.00010889,2]
[346609457,1735125032856,-500.0,0.0001089,2]
[346609459,1735125032865,-500.0,0.0001089,2]
[346609461,1735125032874,-1229.57,0.0001089,2]
[346609463,1735125032884,-448.28035708,0.0001089,2]
[346609465,1735125032893,-500.0,0.0001089,2]
[346609467,1735125032902,-500.0,0.0001089,2]
[346609469,1735125032914,-500.0,0.0001089,2]
[346609471,1735125032923,-191.47956644,0.0001089,2]
[346609475,1735125032953,-456.16043356,0.0001089,2]
[346609477,1735125032962,-883.26,0.0001089,2]
[346609479,1735125032972,-500.0,0.0001089,2]
[346609481,1735125032982,-500.0,0.0001089,2]
[346609483,1735125032991,-813.91,0.0001089,2]
[346609485,1735125033001,-608.94,0.0001089,2]
[346609487,1735125033010,-2820.299737,0.0001089,2]
[346609964,1735125038788,-1887.060263,0.0001089,2]
[346609966,1735125038798,-500.0,0.0001089,2]
[346609968,1735125038808,-500.0,0.0001089,2]
[346609970,1735125038818,-500.0,0.0001089,2]
[346609972,1735125038828,-1843.89,0.0001089,2]
[346609974,1735125038837,-500.0,0.0001089,2]
[346609976,1735125038847,-500.0,0.0001089,2]
[346609978,1735125038856,-500.0,0.0001089,2]
[346609980,1735125038865,-500.0,0.0001089,2]
[346609982,1735125038875,-1671.62,0.0001089,2]
[346609984,1735125038885,-500.0,0.0001089,2]
[346609986,1735125038894,-500.0,0.0001089,2]
[346609988,1735125038904,-501.73266881,0.0001089,2]
[346609990,1735125038915,-500.0,0.0001089,2]
[346609992,1735125038924,-500.0,0.0001089,2]
[346609994,1735125038933,-500.0,0.0001089,2]
[346609996,1735125038942,-500.0,0.0001089,2]
[346609998,1735125038951,-966.18,0.0001089,2]
[346610000,1735125038961,-856.78,0.0001089,2]
[346610002,1735125038971,-500.0,0.0001089,2]
[346610004,1735125038980,-1177.32,0.0001089,2]
[346610006,1735125038990,-500.0,0.0001089,2]
[346610008,1735125039000,-539.83,0.0001089,2]
[346610010,1735125039009,-500.0,0.0001089,2]
[346610012,1735125039019,-500.0,0.0001089,2]
[346610014,1735125039028,-569.21,0.0001089,2]
[346610016,1735125039037,-500.0,0.0001089,2]
[346610018,1735125039046,-500.0,0.0001089,2]
[346610020,1735125039056,-500.0,0.0001089,2]
[346610022,1735125039065,-323.48834857,0.0001089,2]
[346610024,1735125039077,-217.22165143,0.0001089,2]
[346610026,1735125039087,-621.93,0.0001089,2]
[346610027,1735125039096,-500.0,0.0001089,2]
[346610028,1735125039106,-500.0,0.0001089,2]
[346610029,1735125039115,-1178.34,0.0001089,2]
[346610030,1735125039125,-192.04,0.0001089,2]
[346610031,1735125039134,-500.0,0.00010891,2]
[346610032,1735125039145,-583.08,0.00010891,2]
[346610033,1735125039154,-500.0,0.00010891,2]
[346610034,1735125039163,-500.0,0.00010891,2]
[346610035,1735125039173,-500.0,0.00010891,2]
[346610036,1735125039183,-579.64,0.00010891,2]
[346610037,1735125039192,-500.0,0.00010891,2]
[346610038,1735125039201,-469.86188147,0.00010891,2]
[346610039,1735125039213,-30.13811853,0.00010891,2]
[346610040,1735125039222,-391.71430901,0.00010891,2]
[346610041,1735125039234,-108.28569099,0.00010891,2]
[346610042,1735125039243,-152.97720006,0.00010891,2]
[346610043,1735125039252,-500.0,0.00010891,2]
[346610044,1735125039262,-688.97,0.00010891,2]
[346610045,1735125039271,-500.0,0.00010891,2]
[346610046,1735125039281,-500.0,0.00010891,2]
[346610047,1735125039290,-500.0,0.00010891,2]
[346610048,1735125039299,-500.0,0.00010891,2]
[346610049,1735125039309,-500.0,0.00010891,2]
[346610050,1735125039318,-460.73428431,0.00010891,2]
[346610051,1735125039330,-39.26571569,0.00010891,2]
[346610052,1735125039339,-668.89,0.00010891,2]
[346610053,1735125039349,-500.0,0.00010891,2]
[346610054,1735125039358,-500.0,0.00010891,2]
[346610055,1735125039368,-500.0,0.00010891,2]
[346610056,1735125039377,-500.0,0.00010891,2]
[346610057,1735125039386,-577.76947593,0.00010891,2]
[346610058,1735125039395,-165.42,0.00010891,4]
[346610059,1735125039404,-500.0,0.00010891,2]
[346610060,1735125039414,-500.0,0.00010891,2]
[346610061,1735125039423,-750.56,0.00010891,2]
[346610062,1735125039434,-18080.82,0.00010891,2]
[346610063,1735125039443,-500.0,0.00010891,2]
[346610064,1735125039453,-630.25,0.00010891,2]
[346610065,1735125039462,-498.03311485,0.00010891,2]
[346610066,1735125039471,-501.83513903,0.00010891,2]
[346610067,1735125039481,-578.98818759,0.00010891,2]
[346610068,1735125039490,-247.10149344,0.00010891,2]
[346610069,1735125039499,-500.0,0.00010891,2]
[346610070,1735125039508,-502.15083437,0.00010891,2]
[346610071,1735125039519,-500.0,0.00010891,2]
[346610072,1735125039528,-500.0,0.00010891,2]
[346610073,1735125039538,-500.0,0.00010891,2]
[346610074,1735125039548,-4651.48,0.00010891,2]